fUSD/lending_fUSD_20240527
["ID","MTS","AMOUNT","RATE_DAILY","PERIOD"]
[328055245,1716823840841,-157.27197433,0.00029367,2]
[328055246,1716823840851,-155.73529535,0.00029449,2]
[328055247,1716823840862,-152.42219694,0.00029467,2]
[328055248,1716823840872,-184.46317164,0.00029474,2]
[328055249,1716823840883,-1037.39820355,0.000295,2]
[328055250,1716823840893,-155.61167123,0.00029525,2]
[328055251,1716823840903,-155.61167123,0.00029722,2]
[328055252,1716823840914,-317.83776564,0.00029785,2]
[328055253,1716823840924,-150.98,0.00029805,2]
[328055254,1716823840935,-7548.46,0.00029815,2]
[328055255,1716823840945,-152.42219694,0.00029878,2]
[328055256,1716823840955,-317.83776564,0.00029957,2]
[328055257,1716823840965,-183.08405056,0.0003,4]
[328055258,1716823840976,-155.0,0.0003,4]
[328055259,1716823840986,-1000.0,0.0003,2]
[328055260,1716823840996,-43482.26090602,0.0003,2]
[328055261,1716823841007,-1256.22666104,0.0003,4]
[328055262,1716823841017,-800.0,0.00030027,2]
[328055263,1716823841027,-155.02388985,0.00030072,7]
[328055264,1716823841037,-317.83776564,0.00030259,7]
[328055265,1716823841047,-166.66666668,0.00030284,7]
[328055266,1716823841057,-156.01069088,0.00030367,7]
[328055267,1716823841067,-931.16470689,0.00030426,10]
[328055268,1716823841078,-36953.439804,0.00030426,10]
[328055269,1716823841088,-152.79444414,0.00030516,7]
[328055270,1716823841098,-167.31526481,0.00030661,7]
[328055271,1716823841108,-155.61167123,0.00030677,7]
[328055272,1716823841118,-167.31526481,0.00030708,7]
[328055273,1716823841128,-150.0,0.0003075,2]
[328055274,1716823841138,-150.7545535,0.00030755,7]
[328055275,1716823841148,-730.55,0.00030766,2]
[328055276,1716823841158,-155.61167123,0.00030787,7]
[328055277,1716823841283,-834.25577502,0.00030881,5]
[328055278,1716823841294,-167.31526481,0.00030947,7]
[328055279,1716823841308,-150.0,0.00030952,7]
[328055280,1716823841318,-1300.0,0.00031,2]
[328055281,1716823841328,-1000.0,0.00031,2]
[328055282,1716823841338,-150.0,0.00031068,2]
[328055283,1716823841349,-150.0,0.00031096,2]
[328055284,1716823841359,-150.0,0.00031113,2]
[328055285,1716823841368,-150.0,0.00031119,2]
[328055286,1716823841378,-150.0,0.00031121,2]
[328055287,1716823841389,-150.0,0.0003117,2]
[328055288,1716823841399,-317.83776564,0.00031218,7]
[328055289,1716823841408,-150.0,0.0003125,2]
[328055290,1716823841418,-317.83776564,0.00031262,7]
[328055291,1716823841427,-150.0,0.00031285,2]
[328055292,1716823841439,-155.61167123,0.00031287,7]
[328055293,1716823841448,-155.61167123,0.00031326,7]
[328055294,1716823841458,-150.0,0.00031338,2]
[328055295,1716823841467,-150.0,0.00031378,2]
[328055296,1716823841477,-150.0,0.00031381,2]
[328055297,1716823841487,-156.0106909,0.00031393,7]
[328055298,1716823841497,-167.31526481,0.00031397,7]
[328055299,1716823841506,-317.83776564,0.00031411,7]
[328055300,1716823841516,-155.61167123,0.00031431,7]
[328055301,1716823841526,-150.0,0.00031462,2]
[328055302,1716823841535,-157.27197433,0.000315,7]
[328055303,1716823841545,-161.38596787,0.00031513,7]
[328055304,1716823841555,-150.0,0.00031542,2]
[328055305,1716823841565,-150.98,0.00031612,2]
[328055306,1716823841574,-150.0,0.00031616,2]
[328055307,1716823841584,-152.42219694,0.00031617,7]
[328055308,1716823841594,-78754.9282,0.00031622,2]
[328055309,1716823841603,-155.73529535,0.00031668,7]
[328055310,1716823841613,-155.61167123,0.00031717,7]
[328055311,1716823841623,-2005.79258683,0.00031725,2]
[328055312,1716823841632,-155.32938529,0.00031772,7]
[328055313,1716823841642,-157.51349002,0.00031814,7]
[328055314,1716823841652,-167.31526481,0.0003183,7]
[328055315,1716823841661,-152.96549234,0.00031832,7]
[328055316,1716823841671,-159.24928826,0.00031873,7]
[328055317,1716823841680,-931.16470689,0.00031929,10]
[328055318,1716823841691,-36953.439804,0.00031929,10]
[328055319,1716823841700,-150.0,0.0003193,2]
[328055320,1716823841710,-167.31526481,0.00031932,7]
[328055321,1716823841719,-155.61167123,0.00031944,7]
[328055322,1716823841728,-1000.0,0.00032,2]
[328055323,1716823841738,-150.0,0.00032025,2]
[328055324,1716823841747,-152.42219694,0.00032082,7]
[328055325,1716823841758,-155.61167123,0.00032101,7]
[328055326,1716823841768,-283.72219986,0.00032126,2]
[328055327,1716823841778,-150.98,0.00032154,2]
[328055328,1716823841787,-12500.0,0.00032164,2]
[328055329,1716823841797,-150.0,0.00032194,2]
[328055330,1716823841806,-155.0,0.00032217,4]
[328055331,1716823841815,-1081.66,0.00032218,2]
[328055332,1716823841825,-421.33,0.00032219,2]
[328055333,1716823841835,-226.97,0.00032219,2]
[328055334,1716823841845,-150.0,0.00032219,2]
[328055335,1716823841855,-163.69,0.00032219,2]
[328055336,1716823841864,-150.0,0.00032219,2]
[328055337,1716823841873,-150.0,0.00032219,2]
[328055338,1716823841883,-150.0,0.00032219,2]
[328055339,1716823841892,-352.32,0.00032219,2]
[328055340,1716823841902,-157.0476357,0.00032225,7]
[328055341,1716823841912,-1081.66,0.00032226,2]
[328055342,1716823841921,-1081.66,0.00032235,2]
[328055343,1716823841931,-1081.66,0.00032243,2]
[328055344,1716823841943,-1081.66,0.00032252,2]
[328055345,1716823841952,-317.83776564,0.00032255,7]
[328055346,1716823841962,-317.83776564,0.0003226,7]
[328055347,1716823841971,-1081.66,0.0003226,2]
[328055348,1716823841980,-1081.66,0.00032269,2]
[328055349,1716823841990,-1081.66,0.00032277,2]
[328055350,1716823841999,-317.83776564,0.00032284,7]
[328055351,1716823842009,-1081.66,0.00032286,2]
[328055352,1716823842018,-1081.66,0.00032294,2]
[328055353,1716823842027,-1081.66,0.00032303,2]
[328055354,1716823842036,-2550.7,0.00032309,2]
[328055355,1716823842046,-1081.66,0.00032311,2]
[328055356,1716823842055,-155.989557,0.00032314,2]
[328055357,1716823842064,-154.860511,0.00032314,2]
[328055358,1716823842073,-1081.66,0.0003232,2]
[328055359,1716823842083,-1081.66,0.00032328,2]
[328055360,1716823842092,-1081.66,0.00032336,2]
[328055361,1716823842101,-1081.66,0.00032345,2]
[328055362,1716823842111,-1081.66,0.00032353,2]
[328055363,1716823842120,-1081.66,0.00032362,2]
[328055364,1716823842129,-150.0,0.00032363,2]
[328055365,1716823842140,-1081.66,0.0003237,2]
[328055366,1716823842150,-1081.66,0.00032379,2]
[328055367,1716823842159,-150.0,0.00032389,2]
[328055368,1716823842169,-317.83776564,0.00032406,7]
[328055369,1716823842178,-150.0,0.00032483,2]
[328055370,1716823842187,-150.0,0.00032499,4]
[328055371,1716823842197,-1000.0,0.000325,2]
[328055372,1716823842206,-2907.27,0.00032553,2]
[328055373,1716823842215,-167.31526481,0.00032556,7]
[328055374,1716823842225,-152.96549234,0.00032581,7]
[328055375,1716823842234,-214.0,0.00032603,2]
[328055376,1716823842243,-934.01,0.0003263,2]
[328055377,1716823842252,-416.12,0.0003263,2]
[328055378,1716823842262,-1220.59,0.00032635,2]
[328055379,1716823842271,-157.0476357,0.00032646,7]
[328055381,1716823842280,-163.51975857,0.00032686,2]
[328055383,1716823842290,-317.83776564,0.0003269,7]
[328055385,1716823842299,-189.02310332,0.00032743,6]
[328055387,1716823842313,-155.73529535,0.00032747,7]
[328055389,1716823842322,-155.73529535,0.00032754,7]
[328055391,1716823842332,-317.83776564,0.00032756,7]
[328055393,1716823842341,-150.98,0.00032766,2]
[328055395,1716823842352,-150.98,0.00032766,2]
[328055397,1716823842361,-150.0,0.00032769,2]
[328055399,1716823842370,-213011.2617,0.00032776,2]
[328055400,1716823842379,-4463.67036888,0.00032776,4]
[328055403,1716823842390,-161.619254,0.00032776,2]
[328055405,1716823842400,-2260.86747714,0.00032776,2]
[328055407,1716823842409,-153.057889,0.00032789,7]
[328055409,1716823842418,-2500.0,0.000328,2]
[328055411,1716823842427,-4463.67036887,0.00032824,4]
[328055413,1716823842438,-317.83776564,0.00032832,7]
[328055414,1716823842447,-164.0,0.00032843,2]
[328055416,1716823842456,-445.0,0.00032843,2]
[328055418,1716823842465,-808.0,0.00032843,2]
[328055420,1716823842475,-150.0,0.00032843,2]
[328055422,1716823842484,-2398.0,0.00032843,2]
[328055424,1716823842492,-216.0,0.00032843,2]
[328055425,1716823842501,-150.0,0.00032843,2]
[328055426,1716823842511,-1137.0,0.00032843,2]
[328055427,1716823842520,-1650.0,0.00032843,2]
[328055428,1716823842529,-3165.0,0.00032843,2]
[328055429,1716823842539,-5765.0,0.00032843,2]
[328055430,1716823842548,-5139.0,0.00032843,2]
[328055431,1716823842557,-289.0,0.00032843,2]
[328055432,1716823842567,-37936.0,0.00032843,2]
[328055433,1716823842576,-1467.0,0.00032843,2]
[328055434,1716823842585,-800.0,0.00032849,2]
[328055435,1716823842595,-155.989557,0.00032853,2]
[328055436,1716823842604,-150.98,0.00032866,2]
[328055437,1716823842613,-4463.67036887,0.00032871,4]
[328055438,1716823842624,-150.0,0.00032872,2]
[328055439,1716823842633,-1003.41006252,0.00032873,120]
[328055440,1716823842642,-6773.74,0.00032873,2]
[328055441,1716823842651,-18313.96101063,0.00032873,2]
[328055442,1716823842660,-1000.0,0.00032876,2]
[328055443,1716823842670,-1000.0,0.00032876,2]
[328055444,1716823842679,-1000.0,0.00032876,2]
[328055445,1716823842690,-1000.0,0.00032876,2]
[328055446,1716823842700,-1000.0,0.00032876,2]
[328055447,1716823842710,-1000.0,0.00032876,2]
[328055448,1716823842719,-1000.0,0.00032876,2]
[328055449,1716823842728,-1000.0,0.00032876,2]
[328055450,1716823842737,-1000.0,0.00032876,2]
[328055451,1716823842746,-1000.0,0.00032876,2]
[328055452,1716823842756,-1000.0,0.00032876,2]
[328055453,1716823842765,-1000.0,0.00032876,2]
[328055454,1716823842774,-1000.0,0.00032876,2]
[328055455,1716823842783,-1000.0,0.00032876,2]
[328055456,1716823842792,-1000.0,0.00032876,2]
[328055457,1716823842801,-1000.0,0.00032876,2]
[328055458,1716823842811,-1000.0,0.00032876,2]
[328055459,1716823842820,-1000.0,0.00032876,2]
[328055460,1716823842829,-1000.0,0.00032876,2]
[328055461,1716823842839,-1000.0,0.00032876,2]
[328055462,1716823842848,-1043.0,0.00032876,2]
[328055463,1716823842857,-500.0,0.00032876,7]
[328055464,1716823842867,-497.71833905,0.00032876,7]
[328055465,1716823842876,-500.0,0.00032876,7]
[328055470,1716823842885,-500.0,0.00032876,7]
[328055472,1716823842894,-500.0,0.00032876,7]
[328055475,1716823842903,-500.0,0.00032876,7]
[328055478,1716823842911,-500.0,0.00032876,7]
[328055480,1716823842920,-500.0,0.00032876,7]
[328055481,1716823842929,-500.0,0.00032876,7]
[328055482,1716823842940,-500.0,0.00032876,7]
[328055483,1716823842950,-500.0,0.00032876,7]
[328055484,1716823842959,-500.0,0.00032876,7]
[328055485,1716823842969,-500.0,0.00032876,7]
[328055486,1716823842978,-500.0,0.00032876,7]
[328055487,1716823842988,-500.0,0.00032876,7]
[328055488,1716823842997,-500.0,0.00032876,7]
[328055489,1716823843007,-500.0,0.00032876,7]
[328055490,1716823843016,-500.0,0.00032876,7]
[328055491,1716823843026,-500.0,0.00032876,7]
[328055492,1716823843036,-500.0,0.00032876,7]
[328055493,1716823843046,-500.0,0.00032876,7]
[328055494,1716823843055,-546.64228629,0.00032876,7]
[328055495,1716823843066,-500.0,0.00032876,7]
[328055496,1716823843077,-500.0,0.00032876,7]
[328055497,1716823843086,-500.0,0.00032876,7]
[328055498,1716823843096,-308.61,0.00032876,7]
[328055499,1716823843105,-500.0,0.00032876,7]
[328055500,1716823843115,-500.0,0.00032876,7]
[328055501,1716823843124,-500.0,0.00032876,7]
[328055502,1716823843134,-500.0,0.00032876,7]
[328055503,1716823843144,-227.63,0.00032876,7]
[328055504,1716823843153,-500.0,0.00032876,7]
[328055505,1716823843163,-500.0,0.00032876,7]
[328055506,1716823843172,-620.47213018,0.00032876,7]
[328055507,1716823843181,-500.0,0.00032876,7]
[328055508,1716823843192,-510.06665504,0.00032876,7]
[328055509,1716823843202,-500.0,0.00032876,7]
[328055510,1716823843211,-500.0,0.00032876,7]
[328055511,1716823843220,-243.89486125,0.00032876,7]
[328055512,1716823843230,-500.0,0.00032876,7]
[328055513,1716823843239,-500.0,0.00032876,7]
[328055514,1716823843248,-178.1,0.00032876,7]
[328055515,1716823843258,-500.0,0.00032876,7]
[328055516,1716823843267,-239.22946106,0.00032876,7]
[328055517,1716823843277,-500.0,0.00032876,7]
[328055518,1716823843286,-500.0,0.00032876,7]
[328055519,1716823843296,-500.0,0.00032876,7]
[328055520,1716823843309,-511.74144816,0.00032876,7]
[328055521,1716823843318,-500.0,0.00032876,7]
[328055522,1716823843327,-386.18906214,0.00032876,7]
[328055523,1716823843354,-113.81093786,0.00032876,7]
[328055524,1716823843366,-225.07649214,0.00032876,7]
[328055525,1716823843382,-274.92350786,0.00032876,7]
[328055526,1716823843391,-500.0,0.00032876,7]
[328055527,1716823843402,-198.88,0.00032876,7]
[328055528,1716823843518,-500.0,0.00032876,7]
[328055529,1716823843528,-500.0,0.00032876,7]
[328055530,1716823843538,-233.94,0.00032876,7]
[328055531,1716823843547,-315.38000795,0.00032876,7]
[328055532,1716823843556,-508.23943574,0.00032876,7]
[328055533,1716823843566,-500.0,0.00032876,7]
[328055534,1716823843575,-500.0,0.00032876,7]
[328055535,1716823843584,-251.35876189,0.00032876,7]
[328055536,1716823844404,-248.64123811,0.00032876,7]
[328055537,1716823844415,-451.02876189,0.00032876,7]
[328055538,1716823844427,-48.97123811,0.00032876,7]
[328055539,1716823844436,-500.0,0.00032876,7]
[328055540,1716823844447,-500.0,0.00032876,7]
[328055541,1716823844457,-500.0,0.00032876,7]
[328055542,1716823844466,-500.0,0.00032876,7]
[328055543,1716823844475,-500.0,0.00032876,7]
[328055544,1716823844484,-500.0,0.00032876,7]
[328055545,1716823844493,-500.0,0.00032876,5]
[328055546,1716823844502,-500.0,0.00032876,5]
[328055547,1716823844511,-500.0,0.00032876,5]
[328055548,1716823844520,-500.0,0.00032876,5]
[328055549,1716823844528,-500.0,0.00032876,7]
[328055550,1716823844537,-500.0,0.00032876,7]
[328055551,1716823844546,-500.0,0.00032876,7]
[328055552,1716823844555,-500.0,0.00032876,7]
[328055553,1716823844564,-500.0,0.00032876,7]
[328055554,1716823844573,-500.0,0.00032876,7]
[328055555,1716823844581,-500.0,0.00032876,7]
[328055556,1716823844590,-477.12,0.00032876,7]
[328055557,1716823844599,-500.0,0.00032876,7]
[328055558,1716823844609,-500.0,0.00032876,7]
[328055559,1716823844618,-314.36253109,0.00032876,7]
[328055560,1716823844627,-500.0,0.00032876,7]
[328055561,1716823844636,-500.0,0.00032876,7]
[328055562,1716823844645,-500.0,0.00032876,7]
[328055563,1716823844654,-500.0,0.00032876,7]
[328055564,1716823844663,-500.0,0.00032876,7]
[328055565,1716823844672,-500.0,0.00032876,7]
[328055566,1716823844681,-500.0,0.00032876,7]
[328055567,1716823844692,-500.0,0.00032876,7]
[328055568,1716823844701,-500.0,0.00032876,7]
[328055569,1716823844710,-500.0,0.00032876,7]
[328055570,1716823844719,-500.0,0.00032876,7]
[328055571,1716823844728,-500.0,0.00032876,7]
[328055572,1716823844737,-500.0,0.00032876,7]
[328055573,1716823844746,-500.0,0.00032876,7]
[328055574,1716823844755,-500.0,0.00032876,7]
[328055575,1716823844766,-500.0,0.00032876,7]
[328055576,1716823844776,-500.0,0.00032876,7]
[328055577,1716823844784,-609.58,0.00032876,7]
[328055578,1716823844794,-500.0,0.00032876,7]
[328055579,1716823844804,-500.0,0.00032876,7]
[328055580,1716823844814,-500.0,0.00032876,7]
[328055581,1716823844824,-500.0,0.00032876,7]
[328055582,1716823844834,-500.0,0.00032876,7]
[328055583,1716823844844,-500.0,0.00032876,7]
[328055584,1716823844853,-500.0,0.00032876,7]
[328055585,1716823844864,-509.31465574,0.00032876,7]
[328055586,1716823844873,-410.20998259,0.00032876,7]
[328055587,1716823844881,-500.0,0.00032876,7]
[328055588,1716823844890,-500.0,0.00032876,7]
[328055589,1716823844900,-500.0,0.00032876,7]
[328055590,1716823844909,-500.0,0.00032876,7]
[328055591,1716823844918,-500.0,0.00032876,7]
[328055592,1716823844928,-500.0,0.00032876,7]
[328055593,1716823844940,-500.0,0.00032876,7]
[328055594,1716823844950,-500.0,0.00032876,7]
[328055595,1716823844960,-500.0,0.00032876,7]
[328055596,1716823844970,-500.0,0.00032876,7]
[328055597,1716823844980,-500.0,0.00032876,7]
[328055598,1716823844996,-500.0,0.00032876,7]
[328055599,1716823845006,-500.0,0.00032876,7]
[328055600,1716823845018,-500.0,0.00032876,7]
[328055601,1716823845027,-500.0,0.00032876,7]
[328055602,1716823845037,-500.0,0.00032876,7]
[328055603,1716823845050,-500.0,0.00032876,7]
[328055604,1716823845060,-500.0,0.00032876,7]
[328055605,1716823845070,-624.53,0.00032876,7]
[328055606,1716823845080,-386.00357235,0.00032876,7]
[328055607,1716823845289,-113.99642765,0.00032876,7]
[328055608,1716823845299,-311.58857235,0.00032876,7]
[328055609,1716823845315,-195.86949338,0.00032876,7]
[328055610,1716823845324,-500.0,0.00032876,7]
[328055611,1716823845334,-198.12486675,0.00032876,7]
[328055612,1716823845345,-301.87513325,0.00032876,7]
[328055613,1716823845356,-500.0,0.00032876,7]
[328055614,1716823845365,-500.0,0.00032876,7]
[328055615,1716823845375,-501.99936273,0.00032876,7]
[328055616,1716823845385,-500.0,0.00032876,7]
[328055617,1716823845395,-545.86269197,0.00032876,7]
[328055618,1716823845405,-500.0,0.00032876,7]
[328055619,1716823845414,-500.0,0.00032876,7]
[328055620,1716823845423,-500.0,0.00032876,7]
[328055621,1716823845434,-500.0,0.00032876,7]
[328055622,1716823845445,-227.88,0.00032876,7]
[328055623,1716823845454,-281.94441205,0.00032876,7]
[328055624,1716823845470,-218.05558795,0.00032876,7]
[328055625,1716823845480,-500.0,0.00032876,7]
[328055626,1716823845490,-500.0,0.00032876,7]
[328055627,1716823845500,-500.0,0.00032876,7]
[328055628,1716823845509,-302.26652086,0.00032876,7]
[328055629,1716823845518,-500.0,0.00032876,2]
[328055630,1716823845528,-500.0,0.00032876,2]
[328055631,1716823845538,-500.0,0.00032876,2]
[328055632,1716823845548,-500.0,0.00032876,2]
[328055633,1716823845557,-500.0,0.00032876,7]
[328055634,1716823845566,-500.0,0.00032876,7]
[328055635,1716823845576,-500.0,0.00032876,7]
[328055636,1716823845585,-500.0,0.00032876,7]
[328055637,1716823845595,-500.0,0.00032876,7]
[328055638,1716823845605,-500.0,0.00032876,7]
[328055639,1716823845615,-500.0,0.00032876,7]
[328055640,1716823845625,-500.0,0.00032876,7]
[328055641,1716823845635,-500.0,0.00032876,7]
[328055642,1716823845644,-155.0,0.00032876,7]
[328055643,1716823845654,-500.0,0.00032876,7]
[328055645,1716823845664,-500.0,0.00032876,7]
[328055647,1716823845674,-500.0,0.00032876,7]
[328055648,1716823845683,-500.0,0.00032876,7]
[328055650,1716823845693,-500.0,0.00032876,7]
[328055652,1716823845702,-555.99,0.00032876,7]
[328055653,1716823845712,-500.0,0.00032876,7]
[328055654,1716823845722,-1485.12,0.00032876,7]
[328055655,1716823845731,-500.0,0.00032876,7]
[328055656,1716823845741,-1485.12,0.00032876,7]
[328055657,1716823845751,-500.0,0.00032876,7]
[328055658,1716823845761,-1485.12,0.00032876,7]
[328055659,1716823845771,-500.0,0.00032876,7]
[328055660,1716823845780,-1485.12,0.00032876,7]
[328055661,1716823845790,-1485.12,0.00032876,7]
[328055662,1716823845799,-500.0,0.00032876,7]
[328055663,1716823845808,-500.0,0.00032876,7]
[328055664,1716823845818,-500.0,0.00032876,7]
[328055665,1716823845828,-500.0,0.00032876,7]
[328055666,1716823845837,-500.0,0.00032876,7]
[328055667,1716823845847,-500.0,0.00032876,7]
[328055668,1716823845856,-500.0,0.00032876,2]
[328055669,1716823845866,-500.0,0.00032876,2]
[328055670,1716823845875,-500.0,0.00032876,2]
[328055671,1716823845884,-204.04,0.00032876,2]
[328055672,1716823845893,-500.0,0.00032876,7]
[328055673,1716823845903,-500.0,0.00032876,7]
[328055674,1716823845912,-500.0,0.00032876,7]
[328055675,1716823845922,-547.4863158,0.00032876,7]
[328055676,1716823845931,-500.0,0.00032876,7]
[328055677,1716823845941,-500.0,0.00032876,7]
[328055678,1716823845951,-500.0,0.00032876,7]
[328055679,1716823845960,-500.0,0.00032876,7]
[328055680,1716823845970,-500.0,0.00032876,7]
[328055681,1716823845979,-500.0,0.00032876,7]
[328055682,1716823845989,-500.0,0.00032876,7]
[328055683,1716823845998,-500.0,0.00032876,7]
[328055684,1716823846007,-500.0,0.00032876,7]
[328055685,1716823846016,-500.0,0.00032876,7]
[328055686,1716823846025,-534.32434159,0.00032876,7]
[328055687,1716823846035,-500.0,0.00032876,7]
[328055688,1716823846044,-500.0,0.00032876,7]
[328055689,1716823846054,-500.0,0.00032876,7]
[328055690,1716823846063,-500.0,0.00032876,7]
[328055691,1716823846073,-403.98,0.00032876,7]
[328055692,1716823846083,-500.0,0.00032876,7]
[328055693,1716823846093,-500.0,0.00032876,7]
[328055694,1716823846102,-500.0,0.00032876,7]
[328055695,1716823846112,-500.0,0.00032876,7]
[328055696,1716823846122,-500.0,0.00032876,7]
[328055697,1716823846131,-500.0,0.00032876,7]
[328055698,1716823846141,-500.0,0.00032876,7]
[328055699,1716823846151,-500.0,0.00032876,7]
[328055700,1716823846161,-221.12233013,0.00032876,7]
[328055701,1716823846171,-500.0,0.00032876,7]
[328055702,1716823846180,-500.0,0.00032876,7]
[328055703,1716823846193,-500.0,0.00032876,7]
[328055704,1716823846202,-505.18272131,0.00032876,7]
[328055705,1716823846211,-494.21343385,0.00032876,7]
[328055706,1716823846220,-500.0,0.00032876,7]
[328055707,1716823846230,-500.0,0.00032876,7]
[328055708,1716823846240,-500.0,0.00032876,7]
[328055709,1716823846249,-500.0,0.00032876,7]
[328055710,1716823846258,-500.0,0.00032876,7]
[328055711,1716823846270,-500.0,0.00032876,7]
[328055712,1716823846279,-500.0,0.00032876,7]
[328055713,1716823846288,-500.0,0.00032876,7]
[328055714,1716823846299,-500.0,0.00032876,7]
[328055717,1716823846404,-593.38,0.00032876,7]
[328055718,1716823846428,-500.0,0.00032876,7]
[328055719,1716823846438,-500.0,0.00032876,7]
[328055720,1716823846449,-500.0,0.00032876,7]
[328055721,1716823846458,-500.0,0.00032876,7]
[328055722,1716823846467,-500.0,0.00032876,7]
[328055723,1716823846475,-500.0,0.00032876,7]
[328055724,1716823846485,-500.0,0.00032876,7]
[328055725,1716823846493,-500.0,0.00032876,7]
[328055726,1716823846503,-500.0,0.00032876,7]
[328055727,1716823846512,-246.94950564,0.00032876,7]
[328055728,1716823846521,-500.0,0.00032876,7]
[328055729,1716823846533,-500.0,0.00032876,7]
[328055730,1716823846542,-500.0,0.00032876,7]
[328055731,1716823846551,-524.21,0.00032876,7]
[328055732,1716823846560,-500.0,0.00032876,7]
[328055733,1716823846569,-500.0,0.00032876,7]
[328055734,1716823846579,-500.0,0.00032876,7]
[328055735,1716823846588,-272.69221781,0.00032876,7]
[328055736,1716823846596,-500.0,0.00032876,7]
[328055737,1716823846606,-500.0,0.00032876,7]
[328055738,1716823846615,-500.0,0.00032876,7]
[328055739,1716823846624,-500.0,0.00032876,7]
[328055740,1716823846635,-500.0,0.00032876,7]
[328055741,1716823846644,-500.0,0.00032876,7]
[328055742,1716823846654,-500.0,0.00032876,7]
[328055743,1716823846664,-500.0,0.00032876,7]
[328055744,1716823846673,-500.0,0.00032876,7]
[328055745,1716823846683,-500.0,0.00032876,7]
[328055746,1716823846694,-379.76678802,0.00032876,7]
[328055747,1716823846703,-500.0,0.00032876,7]
[328055748,1716823846713,-500.0,0.00032876,7]
[328055749,1716823846722,-500.0,0.00032876,7]
[328055750,1716823846733,-500.0,0.00032876,7]
[328055751,1716823846742,-500.0,0.00032876,7]
[328055752,1716823846752,-500.0,0.00032876,7]
[328055753,1716823846762,-500.0,0.00032876,7]
[328055754,1716823846771,-500.0,0.00032876,7]
[328055755,1716823846781,-500.0,0.00032876,7]
[328055756,1716823846790,-500.0,0.00032876,7]
[328055757,1716823846800,-545.91299576,0.00032876,7]
[328055758,1716823846810,-500.0,0.00032876,7]
[328055759,1716823846820,-500.0,0.00032876,7]
[328055760,1716823846830,-500.0,0.00032876,7]
[328055761,1716823846840,-500.0,0.00032876,7]
[328055762,1716823846850,-500.0,0.00032876,7]
[328055763,1716823846860,-500.0,0.00032876,7]
[328055764,1716823846869,-500.0,0.00032876,7]
[328055765,1716823846879,-500.0,0.00032876,7]
[328055766,1716823846888,-641.34,0.00032876,7]
[328055767,1716823846898,-250.0,0.00032876,7]
[328055768,1716823846907,-250.0,0.00032876,7]
[328055769,1716823846917,-250.0,0.00032876,7]
[328055770,1716823846927,-250.0,0.00032876,7]
[328055771,1716823846936,-500.0,0.00032876,7]
[328055772,1716823846949,-509.62634822,0.00032876,7]
[328055773,1716823846958,-500.0,0.00032876,7]
[328055774,1716823846968,-500.0,0.00032876,7]
[328055775,1716823846978,-500.0,0.00032876,7]
[328055776,1716823846988,-500.0,0.00032876,7]
[328055777,1716823846998,-500.0,0.00032876,7]
[328055778,1716823847008,-500.0,0.00032876,7]
[328055779,1716823847017,-500.0,0.00032876,7]
[328055780,1716823847026,-500.0,0.00032876,7]
[328055781,1716823847037,-500.0,0.00032876,7]
[328055782,1716823847046,-500.0,0.00032876,7]